bitfinex-derivatives/quotes_BTCF0:USTF0_20250309
["timestamp","ask_amount","ask_price","bid_price","bid_amount"]
[1741535871833,0.2247093,83134.0,83133.0,0.2277108]
[1741535872724,0.1044,83134.0,83133.0,0.2277108]
[1741535873032,0.3608,83135.0,83133.0,0.2277108]
[1741535873231,0.4811085,83135.0,83134.0,0.1203093]
[1741535873429,0.00018045,83142.0,83141.0,0.1202992]
[1741535873731,0.00018045,83142.0,83141.0,0.2176592]
[1741535874232,0.1202992,83141.0,83140.0,0.2277003]
[1741535874429,0.2231992,83141.0,83140.0,0.3250603]
[1741535874629,0.3281992,83141.0,83140.0,0.3250603]
[1741535875024,0.2252992,83141.0,83140.0,0.3250603]
[1741535875225,0.00018045,83142.0,83141.0,0.1202992]
[1741535875421,0.00018045,83142.0,83141.0,0.2282992]
[1741535875821,5e-08,83142.0,83141.0,0.2282992]
[1741535876234,0.3608,83159.0,83158.0,0.1202746]
[1741535876433,0.3608,83159.0,83158.0,0.2175946]
[1741535876936,0.1202706,83161.0,83160.0,0.1202717]
[1741535877237,0.3608,83168.0,83158.0,0.09732]
[1741535877530,0.5860601,83168.0,83167.0,0.1202616]
[1741535877726,0.5860601,83168.0,83167.0,0.2175816]
[1741535878128,0.2252601,83168.0,83167.0,0.2175816]
[1741535878530,0.2252601,83168.0,83167.0,0.09732]
[1741535878724,0.3362601,83168.0,83167.0,0.09732]
[1741535879631,0.3362601,83168.0,83167.0,0.2175816]
[1741535880133,0.3362601,83168.0,83167.0,0.09732]
[1741535881033,0.0601336,83164.0,83163.0,0.1804011]
[1741535881234,0.3362607,83168.0,83167.0,0.1202616]
[1741535881535,0.2312607,83168.0,83167.0,0.1202616]
[1741535881736,0.2312601,83168.0,83167.0,0.1202616]
[1741535883335,0.2312601,83168.0,83167.0,0.2282616]
[1741535883527,0.111,83168.0,83167.0,0.2282616]
[1741535883841,0.00018045,83169.0,83168.0,0.1202601]
[1741535884042,0.12043915,83169.0,83168.0,0.4312401]
[1741535884538,0.22853915,83169.0,83168.0,0.20278]
[1741535885632,0.10828045,83169.0,83153.0,0.3608]
[1741535885834,0.10828045,83169.0,83094.0,0.01]
[1741535885835,0.1202789,83155.0,83154.0,0.20274]
[1741535886034,0.1202789,83155.0,83130.0,0.21541702]
[1741535886035,0.4810789,83155.0,83133.0,0.1072]
[1741535886337,0.1192949,83144.0,83141.0,0.1055]
[1741535886732,0.1192949,83144.0,83130.0,0.21541702]
[1741535887042,0.13279169,83144.0,83132.0,0.1074]
[1741535887228,0.33313169,83144.0,83133.0,0.1203099]
[1741535887433,0.3196349,83144.0,83135.0,0.00018045]
[1741535887628,0.23600106,83144.0,83135.0,0.00018045]
[1741535888341,0.1203064,83136.0,83135.0,0.00018045]
[1741535888536,0.28062209,83136.0,83135.0,0.00018045]
[1741535888735,0.40092849,83136.0,83135.0,0.00018045]
[1741535889439,0.49816849,83136.0,83135.0,0.00018045]
[1741535889641,0.37786209,83136.0,83120.0,0.1074]
[1741535889842,0.1203281,83121.0,83120.0,0.1074]
[1741535890139,0.1203368,83116.0,83115.0,0.1805]
[1741535890344,0.1203368,83116.0,83115.0,0.2877]
[1741535891645,0.2269368,83116.0,83115.0,0.2791684]
[1741535891941,0.2269368,83116.0,83115.0,0.1118]
[1741535892143,0.1066,83116.0,83111.0,0.45876]
[1741535892447,0.1203397,83113.0,83112.0,0.1118]
[1741535892843,0.2263397,83113.0,83112.0,0.1118]
[1741535893037,0.2263397,83113.0,83112.0,0.2321412]
[1741535893338,0.2827992,83119.0,83118.0,0.1203325]
[1741535893537,0.0601534,83136.0,83122.0,0.1203267]
[1741535893743,0.1203221,83126.0,83122.0,0.1203267]
[1741535894044,0.3608,83129.0,83122.0,0.2175267]
[1741535894345,0.0601543,83135.0,83122.0,0.2175267]
[1741535894638,0.1203156,83130.0,83122.0,0.23115794]
[1741535894842,0.106,83137.0,83122.0,0.23115794]
[1741535895038,0.120317,83129.0,83122.0,0.23115794]
[1741535895346,0.2776384,83150.0,83149.0,0.1202876]
[1741535895539,0.2405835,83150.0,83149.0,0.1202876]
[1741535896235,0.6013563,83158.0,83155.0,0.0601388]
[1741535896437,0.24073675,83158.0,83157.0,0.1202761]
[1741535897039,0.00018045,83158.0,83157.0,0.3411761]
[1741535898741,0.4810424,83181.0,83180.0,0.1202428]
[1741535899639,0.4810424,83181.0,83180.0,0.3362428]
[1741535900037,0.5936414,83181.0,83180.0,0.3362428]
[1741535901151,0.5936414,83181.0,83180.0,0.2237428]
[1741535901341,0.5936414,83181.0,83180.0,0.1035]
[1741535901540,0.5936414,83181.0,83180.0,0.2237428]
[1741535901938,0.2328414,83181.0,83180.0,0.2237428]
[1741535902340,0.5936414,83181.0,83180.0,0.2237428]
[1741535902838,0.2338414,83181.0,83180.0,0.2237428]
[1741535903652,0.5946414,83181.0,83180.0,0.1035]
[1741535903841,0.1202442,83179.0,83178.0,0.09716]
[1741535904241,0.1202529,83173.0,83160.0,0.3608]
[1741535904436,0.1202529,83173.0,83170.0,0.09712]
[1741535904643,0.1202529,83173.0,83165.0,0.2215]
[1741535904844,0.1202529,83173.0,83172.0,3e-08]
[1741535904845,0.5781729,83173.0,83172.0,3e-08]
[1741535905051,0.7972729,83173.0,83172.0,3e-08]
[1741535905343,0.9058729,83173.0,83172.0,3e-08]
[1741535905548,0.6950729,83173.0,83172.0,3e-08]
[1741535905851,0.9058729,83173.0,83172.0,3e-08]
[1741535906845,1.2676729,83173.0,83172.0,3e-08]
[1741535907350,1.27007752,83173.0,83172.0,3e-08]
[1741535907751,1.14982462,83173.0,83133.0,0.09712]
[1741535908047,0.4811064,83136.0,83133.0,0.09712]
[1741535908550,0.4811064,83136.0,83132.0,0.1065]
[1741535908551,0.4811064,83136.0,83132.0,0.2106]
[1741535908747,0.1203064,83136.0,83132.0,0.2106]
[1741535908953,0.1203064,83136.0,83135.0,0.33572492]
[1741535909245,0.1203032,83140.0,83139.0,0.1804462]
[1741535909450,0.120305,83138.0,83137.0,0.1203043]
[1741535909638,0.120305,83138.0,83137.0,0.2230043]
[1741535909846,0.120305,83138.0,83137.0,0.1027]
[1741535910039,0.00018033,83144.0,83137.0,0.2068]
[1741535910247,0.12047523,83144.0,83143.0,0.1202963]
[1741535910538,0.12047523,83144.0,83143.0,0.3270963]
[1741535910743,0.12047523,83144.0,83143.0,0.2068]
[1741535911545,0.12047523,83144.0,83143.0,0.3270963]
[1741535911952,0.00018033,83144.0,83143.0,0.3270963]
[1741535912145,0.12047523,83144.0,83143.0,0.2068]
[1741535912643,0.12047523,83144.0,83135.0,0.007]
[1741535912644,0.1203064,83136.0,83135.0,0.007]
[1741535912842,0.4811064,83136.0,83135.0,0.007]
[1741535913543,0.3608,83136.0,83130.0,0.1035]
[1741535913743,0.1203137,83131.0,83130.0,0.1035]
[1741535915550,0.1203137,83131.0,83130.0,0.3316151]
[1741535916053,0.1203137,83131.0,83130.0,0.2113]
[1741535916755,0.2336137,83131.0,83130.0,0.2113]
[1741535917251,0.2336137,83131.0,83130.0,0.1035]
[1741535917457,0.120318,83128.0,83127.0,0.00018033]
[1741535917756,0.120318,83128.0,83127.0,0.12049983]
[1741535918849,0.120318,83128.0,83127.0,0.00018033]
[1741535919651,0.120318,83128.0,83127.0,0.21458033]
[1741535920556,0.120318,83128.0,83127.0,0.00018033]
[1741535920557,0.337118,83128.0,83127.0,0.00018033]
[1741535922047,0.35050967,83128.0,83127.0,0.00018033]
[1741535924450,0.35050967,83128.0,83127.0,3e-08]
[1741535924655,0.35050967,83128.0,83034.0,0.08225287]
[1741535924656,0.1203412,83112.0,83111.0,0.1052]
[1741535925558,0.1203528,83104.0,83103.0,0.1134]
[1741535925758,0.20464,83111.0,83099.0,0.00180502]
[1741535925965,0.1203455,83109.0,83108.0,0.1203441]
[1741535926263,0.120347,83108.0,83107.0,0.1134]
[1741535926464,0.120347,83108.0,83107.0,0.2337484]
[1741535927252,0.4209708,83112.0,83110.0,0.1203441]
[1741535927253,0.3608,83112.0,83110.0,0.1203441]
[1741535927458,0.3608,83112.0,83111.0,0.3289426]
[1741535927658,0.4811412,83112.0,83111.0,0.3289426]
[1741535928061,0.00018044,83120.0,83117.0,0.1203325]
[1741535928268,0.00018044,83120.0,83118.0,0.328931]
[1741535928562,0.12051004,83120.0,83118.0,0.328931]
[1741535928755,0.09425108,83126.0,83118.0,0.2086]
[1741535928963,0.120331,83119.0,83118.0,0.2086]
[1741535929765,0.481131,83119.0,83118.0,0.2086]
[1741535929964,0.481131,83119.0,83118.0,0.1023]
[1741535930467,0.224731,83119.0,83118.0,0.2226325]
[1741535930665,0.120331,83119.0,83118.0,0.2226325]
[1741535931468,0.120331,83119.0,83118.0,0.1023]
[1741535932261,0.120331,83119.0,83118.0,0.2226325]
[1741535932569,0.120331,83119.0,83118.0,0.1023]
[1741535932764,0.1203265,83124.0,83123.0,0.1804843]
[1741535933159,0.1203228,83125.0,83124.0,0.1804821]
[1741535933360,0.1203228,83125.0,83124.0,0.1053]
[1741535933667,0.1203228,83125.0,83124.0,0.2256238]
[1741535934761,0.1203228,83125.0,83124.0,0.1053]
[1741535935661,0.2244228,83125.0,83124.0,0.1053]
[1741535936067,0.3306228,83125.0,83124.0,0.1053]
[1741535936266,0.2244228,83125.0,83124.0,0.1053]
[1741535936569,0.1203228,83125.0,83124.0,0.2256238]
[1741535937866,0.00018044,83127.0,83124.0,0.2256238]
[1741535937867,0.00018044,83127.0,83126.0,0.1203209]
[1741535938267,0.00018044,83127.0,83126.0,0.3331209]
[1741535938687,0.12049994,83127.0,83126.0,0.3331209]
[1741535939974,0.12049994,83127.0,83126.0,0.2128]
[1741535940276,0.12049994,83127.0,83126.0,0.3331209]
[1741535941068,0.00018044,83127.0,83126.0,0.3331209]
[1741535941271,0.12049994,83127.0,83126.0,0.3331209]
[1741535944172,0.00018044,83127.0,83126.0,0.3331209]
[1741535946478,0.12049994,83127.0,83126.0,0.3331209]
[1741535947769,0.00018044,83127.0,83126.0,0.3331209]
[1741535949967,0.0601296,83169.0,83126.0,0.2128]
[1741535950181,0.108,83150.0,83147.0,0.1202905]
[1741535950366,0.4810891,83148.0,83147.0,0.2172105]
[1741535950572,0.3608,83148.0,83147.0,0.2172105]
[1741535950773,0.4810891,83148.0,83147.0,0.2172105]
[1741535951965,0.1202891,83148.0,83147.0,0.2172105]
[1741535952169,0.1202891,83148.0,83147.0,0.2171705]
[1741535952369,0.1203006,83140.0,83139.0,0.12048164]
[1741535952577,0.1203006,83140.0,83139.0,0.32776164]
[1741535952965,0.1203006,83140.0,83139.0,0.10628894]
[1741535953179,0.1203006,83140.0,83139.0,0.22659104]
[1741535953368,0.1203006,83140.0,83139.0,0.33699104]
[1741535953874,0.13375579,83140.0,83139.0,0.33699104]
[1741535954876,0.13375579,83140.0,83139.0,0.24011104]
[1741535955082,0.207,83142.0,83139.0,0.24011104]
[1741535955272,0.1203006,83140.0,83139.0,0.30026134]
[1741535955977,0.1203006,83140.0,83139.0,0.00018044]
[1741535955978,0.3381006,83140.0,83139.0,0.00018044]
[1741535956374,0.3381006,83140.0,83139.0,0.12048254]
[1741535956875,0.1062,83140.0,83139.0,0.23368254]
[1741535957077,0.1103,83147.0,83139.0,0.11338044]
[1741535957271,0.1081,83155.0,83143.0,0.0601474]
[1741535957585,0.45505108,83161.0,83155.0,0.1202789]
[1741535957586,0.1103,83160.0,83155.0,0.1202789]
[1741535957774,0.1032,83160.0,83155.0,0.2171189]
[1741535958174,0.1081,83171.0,83155.0,0.2171189]
[1741535958372,0.2863784,83172.0,83155.0,0.1100374]
[1741535958580,0.2863784,83172.0,83171.0,0.1202558]
[1741535958886,0.2857384,83172.0,83171.0,0.2170958]
[1741535959680,0.4059928,83172.0,83171.0,0.2170958]
[1741535961081,0.4059928,83172.0,83171.0,0.09684]
[1741535961284,0.12265905,83172.0,83171.0,0.09684]
[1741535961785,0.1202659,83164.0,83163.0,0.00018044]
[1741535961984,0.1202659,83164.0,83163.0,0.10468044]
[1741535962179,0.1202659,83164.0,83163.0,0.22494784]
[1741535963078,0.1052,83166.0,83165.0,0.1202645]
[1741535963286,0.225463,83166.0,83165.0,0.1202645]
[1741535965790,0.00240465,83172.0,83169.0,0.1202587]
[1741535965983,0.12266195,83172.0,83171.0,0.1202558]
[1741535966795,0.48346195,83172.0,83171.0,0.1202558]
[1741535967488,0.12266195,83172.0,83171.0,0.1202558]
[1741535967880,0.00240465,83172.0,83171.0,0.1202558]
[1741535968885,0.12265905,83172.0,83171.0,0.1202558]
[1741535969493,0.00240465,83172.0,83171.0,0.1202558]
[1741535969686,0.12265905,83172.0,83171.0,0.1202558]
[1741535970286,0.00240465,83172.0,83171.0,0.1202558]
[1741535971380,0.12265905,83172.0,83171.0,0.1202558]
[1741535972191,0.00240465,83172.0,83171.0,0.1202558]
[1741535972392,0.00240465,83172.0,83171.0,0.2169758]
[1741535973090,0.12265905,83172.0,83171.0,0.2169758]
[1741535973295,0.12265905,83172.0,83171.0,0.3214758]
[1741535973493,0.00240465,83172.0,83170.0,0.1093]
[1741535973694,0.2268558,83171.0,83170.0,0.2295573]
[1741535974098,0.2268558,83171.0,83170.0,0.1093]
[1741535974288,0.2268558,83171.0,83166.0,0.45752]
[1741535974289,0.1202616,83167.0,83166.0,0.45752]
[1741535974485,0.1202645,83165.0,83164.0,0.1093]
[1741535974690,0.1066,83166.0,83164.0,0.1093]
[1741535974885,0.1066,83166.0,83165.0,0.1202645]
[1741535975294,0.1066,83166.0,83165.0,0.2263645]
[1741535975500,0.226863,83166.0,83165.0,0.2263645]
[1741535975887,0.24025204,83166.0,83165.0,0.2263645]
[1741535976087,0.24025204,83166.0,83165.0,0.1061]
[1741535976290,0.1202659,83164.0,83163.0,0.00018044]
[1741535977897,0.1202659,83164.0,83163.0,0.12044784]
[1741535978489,0.1095,83164.0,83163.0,0.12044784]
[1741535978706,0.2297659,83164.0,83163.0,0.23444784]
[1741535978997,0.2297659,83164.0,83163.0,0.33784784]
[1741535978998,0.1095,83164.0,83163.0,0.33784784]
[1741535979704,0.2297659,83164.0,83163.0,0.33784784]
[1741535980202,0.3411659,83164.0,83163.0,0.33784784]
[1741535980700,0.3411659,83164.0,83163.0,0.23444784]
[1741535980999,0.3411659,83164.0,83163.0,0.00018044]
[1741535981190,0.5817,83164.0,83146.0,0.060145]
[1741535981395,0.1202891,83149.0,83148.0,0.1202881]
[1741535981602,0.1202891,83149.0,83148.0,0.2298881]
[1741535981995,0.09668,83163.0,83161.0,0.0601344]
[1741535982204,0.4363474,83163.0,83162.0,0.2255688]
[1741535982396,0.3396674,83163.0,83162.0,0.2255688]
[1741535982992,0.2194,83163.0,83154.0,0.00018044]
[1741535983193,0.1202789,83155.0,83154.0,0.12045694]
[1741535983397,0.1202789,83155.0,83154.0,0.24073504]
[1741535984106,0.1202789,83155.0,83154.0,0.34883504]
[1741535984301,0.1202789,83155.0,83154.0,0.22855694]
[1741535984506,0.1202789,83155.0,83154.0,0.22856084]
[1741535984803,0.13376691,83155.0,83154.0,0.00018044]
[1741535985805,0.13376691,83155.0,83154.0,0.11268044]
[1741535985998,0.13376691,83155.0,83154.0,0.23296084]
[1741535986604,0.13376691,83155.0,83154.0,0.11268044]
[1741535988595,0.23040691,83155.0,83154.0,0.00018044]
[1741535993998,0.23040691,83155.0,83135.0,0.1203074]
[1741535994304,0.1804471,83142.0,83141.0,0.1093]
[1741535994505,0.1804471,83142.0,83141.0,0.2295992]
[1741535995110,0.2904471,83142.0,83141.0,0.2295992]
[1741535995314,0.2904471,83142.0,83141.0,0.3322992]
[1741535996104,0.2904471,83142.0,83141.0,0.212]
[1741535996305,0.3958471,83142.0,83141.0,0.1093]
[1741535997910,0.3958471,83142.0,83141.0,0.2201]
[1741536000633,0.3958471,83142.0,83129.0,0.0601578]
[1741536000634,0.1701493,83142.0,83114.0,0.3608]
[1741536000824,0.1078,83141.0,83114.0,0.3608]
[1741536001128,0.1078,83141.0,83043.0,0.1205]
[1741536001129,0.3608,83115.0,83100.0,0.3608]
[1741536001418,0.0601657,83119.0,83115.0,0.1203316]
[1741536001616,0.1203349,83117.0,83116.0,0.2257325]
[1741536001821,0.1203349,83117.0,83116.0,0.3281325]
[1741536002010,0.1203349,83117.0,83116.0,0.2078]
[1741536002313,0.1203349,83117.0,83116.0,0.3281354]
[1741536003012,0.1203349,83117.0,83116.0,0.2078]
[1741536003612,0.4811349,83117.0,83116.0,0.2078]
[1741536004716,0.49455931,83117.0,83116.0,0.2078]
[1741536005421,0.3608,83117.0,83116.0,0.2078]
[1741536005718,0.4811339,83117.0,83116.0,0.2078]
[1741536006315,0.36144,83146.0,83116.0,0.2078]
[1741536006519,0.3608,83146.0,83124.0,0.3608]
[1741536006710,0.3608,83146.0,83143.0,0.1202934]
[1741536007015,0.3608,83146.0,83145.0,0.1202934]
[1741536007217,0.1202934,83145.0,83144.0,0.30906]
[1741536007627,0.3608,83146.0,83144.0,0.30906]
[1741536007916,0.00018044,83153.0,83152.0,0.1202833]
[1741536007917,0.12046224,83153.0,83152.0,0.1202833]
[1741536008108,0.48126224,83153.0,83152.0,0.09656]
[1741536008312,0.12046224,83153.0,83152.0,0.09656]
[1741536008621,0.00018044,83153.0,83152.0,0.2168433]
[1741536008813,0.12046224,83153.0,83152.0,0.20436]
[1741536009008,0.12046224,83153.0,83152.0,0.0458654]
[1741536009212,0.1202934,83145.0,83144.0,0.1076]
[1741536009414,0.4810934,83145.0,83144.0,0.1076]
[1741536009710,0.3608,83145.0,83143.0,0.1103]
[1741536010013,0.2225949,83144.0,83143.0,0.1103]
[1741536010416,0.0601458,83147.0,83143.0,0.1103]
[1741536010417,0.3608,83154.0,83149.0,0.0601437]
[1741536010721,0.060131,83167.0,83152.0,0.1202833]
[1741536010917,0.060133,83164.0,83152.0,0.1202833]
[1741536011222,0.06013,83168.0,83161.0,0.0601347]
[1741536011416,0.3608,83170.0,83162.0,0.09652]
[1741536011622,0.3608,83170.0,83169.0,0.1202587]
[1741536011823,0.1202497,83176.0,83171.0,0.1202558]
[1741536012022,0.3608,83176.0,83171.0,0.1202558]
[1741536012622,0.12265905,83172.0,83171.0,0.1202558]
[1741536012810,0.1202558,83171.0,83170.0,0.1047]
[1741536013013,0.1202659,83164.0,83163.0,0.00018044]
[1741536013414,0.4810659,83164.0,83163.0,4e-08]
[1741536013613,0.5775459,83164.0,83163.0,4e-08]
[1741536014023,0.7914459,83164.0,83163.0,4e-08]
[1741536014719,0.6801459,83164.0,83163.0,4e-08]
[1741536014920,0.09648,83178.0,83163.0,4e-08]
[1741536015124,0.0601241,83177.0,83164.0,0.216741]
[1741536015324,0.4209279,83171.0,83164.0,0.09648]
[1741536015518,0.1202645,83165.0,83164.0,0.09648]
[1741536015713,0.1202645,83165.0,83164.0,0.108]
[1741536015914,0.4810645,83165.0,83164.0,0.108]
[1741536016118,0.1202659,83164.0,83163.0,4e-08]
[1741536016421,0.3373659,83164.0,83163.0,4e-08]
[1741536017126,0.4873659,83164.0,83163.0,4e-08]
[1741536017429,0.1202978,83142.0,83141.0,0.1115]
[1741536017628,0.4810978,83142.0,83141.0,0.1115]
[1741536018424,0.59639152,83142.0,83141.0,0.1115]
[1741536020127,0.1203093,83134.0,83133.0,0.00018044]
[1741536020324,0.4811093,83134.0,83133.0,0.00018044]
[1741536020923,0.8084093,83134.0,83133.0,0.00018044]
[1741536021929,0.4733,83134.0,83133.0,0.12049124]
[1741536022235,0.09644,83146.0,83133.0,0.00018044]
[1741536022433,0.1203068,83139.0,83138.0,0.1203002]
[1741536023123,0.1203068,83139.0,83138.0,0.3272002]
[1741536023328,0.1203068,83139.0,83138.0,0.2069]
[1741536023629,0.1125,83141.0,83138.0,0.2670511]
[1741536023823,0.3608,83142.0,83141.0,0.1202992]
[1741536024235,0.4810978,83142.0,83141.0,0.2175]
[1741536024530,0.3608,83142.0,83134.0,0.09644]
[1741536024726,0.1203093,83134.0,83125.0,0.2167617]
[1741536024920,0.1203093,83134.0,83126.0,0.1087]
[1741536025232,0.3358093,83134.0,83126.0,0.1087]
[1741536025921,0.1037,83134.0,83131.0,0.0601562]
[1741536026126,0.2240093,83134.0,83132.0,0.2175]
[1741536026533,0.2240093,83134.0,83125.0,0.09644]
[1741536026534,0.2240093,83134.0,83133.0,0.21258044]
[1741536026732,0.3271093,83134.0,83133.0,0.21258044]
[1741536027040,0.3271093,83134.0,83133.0,0.10888044]
[1741536027433,0.3271093,83134.0,83133.0,0.00018044]
[1741536031232,0.2234093,83134.0,83133.0,0.00018044]
[1741536032739,0.0964,83134.0,83133.0,0.12049124]
[1741536032938,0.0964,83134.0,83133.0,0.00018044]
[1741536032939,0.1203093,83134.0,83133.0,0.00018044]
[1741536033130,0.2245093,83134.0,83133.0,0.00018044]
[1741536033327,0.3608,83135.0,83134.0,0.1203093]
[1741536033529,0.3608,83135.0,83134.0,0.3345093]
[1741536033725,0.3608,83135.0,83134.0,0.4309093]
[1741536033929,0.3608,83143.0,83142.0,0.1202978]
[1741536034235,0.3608,83143.0,83142.0,0.4308978]
[1741536034931,0.4810963,83143.0,83142.0,0.4308978]
[1741536035643,0.1202764,83157.0,83149.0,0.1202876]
[1741536035845,0.4572,83167.0,83149.0,0.2166876]
[1741536036135,0.12046664,83150.0,83149.0,0.2166876]
[1741536036340,0.12046664,83150.0,83149.0,0.4422876]
[1741536036539,0.00018044,83150.0,83149.0,0.4422876]
[1741536036842,0.12046664,83150.0,83149.0,0.4422876]
[1741536038629,0.48126664,83150.0,83149.0,0.322]
[1741536039033,0.12046664,83150.0,83149.0,0.322]
[1741536039444,0.33266664,83150.0,83149.0,0.322]
[1741536039939,0.00018044,83150.0,83149.0,0.4422876]
[1741536040132,0.12046664,83150.0,83149.0,0.4422876]
[1741536040535,0.12046664,83150.0,83149.0,0.322]
[1741536040731,0.48126664,83150.0,83149.0,0.2256]
[1741536041244,0.48126664,83150.0,83149.0,0.113]
[1741536041434,0.1202905,83147.0,83146.0,0.00212]
[1741536041842,0.4810905,83147.0,83146.0,0.00212]
[1741536042142,0.1203006,83140.0,83133.0,0.00018044]
[1741536042337,0.5774606,83140.0,83133.0,0.00018044]
[1741536043042,0.5774606,83140.0,83123.0,0.1067]
[1741536043043,0.76871108,83140.0,83123.0,0.1067]
[1741536043236,0.8419238,83124.0,83123.0,0.1067]
[1741536043442,0.1203253,83123.0,83119.0,0.1129]
[1741536043640,0.45762396,83123.0,83119.0,0.1129]
[1741536044034,0.1203325,83118.0,83103.0,0.43143761]
[1741536044233,0.2166925,83118.0,83114.0,0.00018044]
[1741536044640,0.1203368,83115.0,83114.0,0.00018044]
[1741536044838,0.4811368,83115.0,83114.0,0.00018044]
[1741536045640,0.5108,83115.0,83086.0,0.45525134]
[1741536045832,0.09636,83118.0,83091.0,0.1058]
[1741536045833,0.8419629,83097.0,83091.0,0.1058]
[1741536046035,0.9382829,83097.0,83091.0,0.1058]
[1741536046235,0.9382829,83097.0,83086.0,0.35893134]
[1741536046435,0.9382829,83097.0,83096.0,0.1661504]
[1741536046648,1.1547829,83097.0,83096.0,0.1661504]
[1741536047445,1.24903398,83097.0,83096.0,0.13177512]
[1741536048140,0.1203672,83094.0,83093.0,0.04843]
[1741536048540,0.15,83094.0,83088.0,0.00018044]
[1741536048841,0.3608,83089.0,83071.0,0.22]
[1741536049144,0.3608,83089.0,83088.0,0.1203759]
[1741536049337,0.3608,83089.0,83087.0,0.1203767]
[1741536049532,0.1203759,83088.0,83087.0,0.1203767]
[1741536049846,0.3608,83089.0,83088.0,0.1203759]
[1741536050146,0.4811745,83089.0,83088.0,0.1203759]
[1741536050450,0.3608,83089.0,83088.0,0.1203759]
[1741536050740,0.4811745,83089.0,83088.0,0.1203759]
[1741536051264,0.1203835,83085.0,83084.0,0.1203815]
[1741536051539,0.1203835,83085.0,83083.0,0.060191]
[1741536051540,0.1203875,83080.0,83079.0,0.09632]
[1741536051746,0.1203927,83077.0,83076.0,0.1203902]
[1741536051940,0.1203927,83077.0,83076.0,0.1362202]
[1741536052243,0.3608,83081.0,83080.0,0.1203875]
[1741536052443,0.3608,83081.0,83080.0,0.2167075]
[1741536052835,0.09632,83092.0,83091.0,0.1203716]
[1741536053048,0.00018044,83096.0,83091.0,0.1203701]
[1741536053246,0.10268044,83096.0,83092.0,0.1203701]
[1741536053439,0.06036264,83096.0,83092.0,0.1203701]
[1741536053743,0.00018044,83096.0,83092.0,0.1203701]
[1741536054448,0.00018044,83096.0,83091.0,0.1203707]
[1741536054638,0.00018044,83096.0,83087.0,0.09632]
[1741536054839,0.1135,83092.0,83087.0,0.09632]
[1741536055043,0.12054564,83096.0,83089.0,0.1203739]
[1741536055244,0.1135,83094.0,83089.0,0.1203739]
[1741536055445,0.1135,83094.0,83090.0,0.1203717]
[1741536055647,0.1135,83092.0,83087.0,0.2166971]
[1741536055847,0.1135,83092.0,83087.0,0.1203771]
[1741536055848,0.3608,83089.0,83087.0,0.1203771]
[1741536056046,0.3608,83089.0,83084.0,0.09632]
[1741536056350,0.1135,83088.0,83084.0,0.09632]
[1741536056649,0.01843685,83088.0,83084.0,0.09632]
[1741536057035,0.00240694,83093.0,83092.0,0.1203701]
[1741536057235,0.00240694,83093.0,83064.0,0.36260578]
[1741536057444,0.3608,83077.0,83070.0,0.09632]
[1741536057844,0.3608,83077.0,83076.0,0.1362233]
[1741536058149,0.09632,83085.0,83077.0,0.0601959]
[1741536058348,0.09632,83085.0,83076.0,0.01583]
[1741536058349,0.3608,83080.0,83076.0,0.01583]
[1741536058537,0.1203919,83077.0,83076.0,0.01583]
[1741536058947,0.09632,83079.0,83076.0,0.01583]
[1741536059143,0.1203919,83077.0,83076.0,0.01583]
[1741536060244,0.3608,83080.0,83076.0,0.01583]
[1741536060550,0.09632,83079.0,83077.0,0.1069]
[1741536060750,0.1203904,83078.0,83077.0,0.1069]
[1741536060951,0.3344904,83078.0,83077.0,0.1069]
[1741536061638,0.2141,83078.0,83077.0,0.2272919]
[1741536062043,0.3344904,83078.0,83077.0,0.2272919]
[1741536062246,0.3344904,83078.0,83077.0,0.1069]
[1741536063051,0.1203919,83077.0,83076.0,0.01583]
[1741536063449,0.3368919,83077.0,83076.0,0.01583]
[1741536063647,0.3368919,83077.0,83076.0,0.1362233]
[1741536063853,0.3368919,83077.0,83076.0,0.01583]
[1741536064454,0.3368919,83077.0,83076.0,0.1362233]
[1741536065848,0.3368919,83077.0,83076.0,0.01583]
[1741536066850,0.1203919,83077.0,83076.0,0.076026]
[1741536067055,0.1203919,83077.0,83076.0,0.01583]
[1741536067252,0.4811919,83077.0,83076.0,0.01583]
[1741536068050,0.49024536,83077.0,83076.0,0.01583]
[1741536068442,0.1204035,83069.0,83068.0,0.3383025]
[1741536068652,0.5774835,83069.0,83068.0,0.3383025]
[1741536069056,0.45708,83069.0,83052.0,0.09628]
[1741536069254,0.4812209,83057.0,83056.0,0.1204181]
[1741536069455,0.1204238,83055.0,83054.0,0.180636]
[1741536069858,0.3608,83057.0,83056.0,0.1204223]
[1741536070156,0.1204325,83049.0,83039.0,0.0602227]
[1741536070350,0.3608,83040.0,83039.0,0.120447]
[1741536070548,0.3608,83050.0,83049.0,0.1204325]
[1741536070956,5e-08,83052.0,83051.0,0.1204296]
[1741536071160,5e-08,83052.0,83051.0,0.4812296]
[1741536072062,0.3608,83086.0,83085.0,0.1203803]
[1741536072452,0.1203875,83081.0,83078.0,0.09628]
[1741536072648,0.3608,83079.0,83052.0,0.2571392]
[1741536072853,0.1204339,83048.0,83047.0,0.00180614]
[1741536073152,0.3608,83053.0,83052.0,0.1204281]
[1741536073357,0.00018055,83056.0,83052.0,0.1204281]
[1741536073558,0.3608,83055.0,83054.0,0.1204238]
[1741536074155,0.3608,83055.0,83052.0,0.0602135]
[1741536074156,0.1204267,83053.0,83052.0,0.0602135]
[1741536074549,0.2188,83054.0,83047.0,0.00180614]
[1741536074863,0.46984747,83055.0,83054.0,0.1204252]
[1741536075051,0.01276747,83055.0,83054.0,0.1204252]
[1741536075252,0.00018055,83056.0,83054.0,0.1204252]
[1741536075452,0.00018055,83056.0,83055.0,0.1204238]
[1741536075853,5e-08,83056.0,83055.0,0.4812238]
[1741536076058,5e-08,83056.0,83055.0,0.6312238]
[1741536076254,0.3608,83087.0,83086.0,0.1203788]
[1741536076463,0.3608,83096.0,83095.0,0.1203658]
[1741536076863,0.1203672,83094.0,83093.0,0.0601838]
[1741536077056,0.060183,83095.0,83083.0,0.2166627]
[1741536077357,0.3608,83086.0,83085.0,0.1203803]
[1741536078366,0.09628,83091.0,83090.0,0.120373]
[1741536078858,0.09628,83091.0,83081.0,0.00018055]
[1741536079063,0.2166521,83091.0,83090.0,0.120373]
[1741536079969,0.09628,83091.0,83088.0,0.0601874]
[1741536080267,0.2166534,83091.0,83090.0,0.120373]
[1741536080671,0.09628,83091.0,83081.0,0.00018055]
[1741536080859,0.4811846,83082.0,83081.0,0.00018055]
[1741536081055,0.9382246,83082.0,83081.0,0.00018055]
[1741536081968,0.5774246,83082.0,83081.0,0.00018055]
[1741536082153,0.3608,83082.0,83081.0,0.00018055]
[1741536082359,0.3608,83082.0,83081.0,0.12056665]